Cogmind - Beta 10.1 @@@ ROGUE MODE // 2020.10.27 @ 21:49:06 Player: Atherys Result: Destroyed by as-57509 with Assembled Heavy Rifle Performance ------------- Evolutions (0) 0 Regions Visited (2) 400 Robots Destroyed (51) 255 Value Destroyed (767) 767 Prototype IDs (3) 60 Alien Tech Used (0) 0 Bonus (0) 0 TOTAL SCORE: 1482 Bonus ------- None Cogmind --------- Core Integrity 0/250 Matter 183/300 Energy 100/100 System Corruption 3% Temperature Cool (0) Movement Core (350) Ox6 Location -10/Mines Parts ------- > --- POWER (1) -------- (None) > --- PROPULSION (2) --- (None) > --- UTILITY (2) ------ Large Storage Unit Experimental Sensor Array > --- WEAPON (2) ------- Light Cannon > --- INVENTORY (10) --- Improved Heat Sink Large Storage Unit Particle Gun Datajack Mining Laser Peak State ------------ > --- POWER ------------ Light Nuclear Core > --- PROPULSION ------- Aluminum Leg Aluminum Leg > --- UTILITY ---------- Large Storage Unit Experimental Sensor Array > --- WEAPON ----------- Light Cannon Light Cannon > --- INVENTORY -------- Ion Engine Improved Heat Sink Large Storage Unit Particle Gun Datajack Mining Laser [Rating: 14] Favorites ----------- Power Light Nuclear Core Engine Light Ion Engine Power Core Light Nuclear Core Propulsion Wheel Leg Aluminum Leg Wheel Wheel Hover Unit Backup Propulsion I Utility Large Storage Unit Device Improved Heat Sink Storage Large Storage Unit Weapon Light Cannon Energy Gun Medium Laser Energy Cannon Particle Cannon Ballistic Cannon Light Cannon Special Weapon Mining Laser Build | -11 -10 -10 ------- Run | Scr Mat Min Slots Evolved . | . . . Power . | . . . Propulsion . | . . . Utility . | . . . Weapon . | . . . Parts Attached 42 | 7 28 7 Power 6 | 1 4 1 Engine 5 | 1 3 1 Core 1 | . 1 . Reactor . | . . . Propulsion 16 | 2 11 3 Treads . | . . . Leg 5 | . 2 3 Wheel 11 | 2 9 . Hover . | . . . Flight . | . . . Utility 8 | 2 5 1 Device 5 | 1 3 1 Storage 3 | 1 2 . Processor . | . . . Hackware . | . . . Protection . | . . . Artifact . | . . . Weapon 12 | 2 8 2 Energy Gun 6 | 2 4 . Energy Cannon 2 | . 2 . Ballistic Gun . | . . . Ballistic Cannon 3 | . 2 1 Launcher . | . . . Special Weapon 1 | . . 1 Impact Weapon . | . . . Slashing Weapon . | . . . Piercing Weapon . | . . . Special Melee Weapon . | . . . Unidentified Prototypes 1 | . . 1 Parts Lost 11 | . 4 7 Power 2 | . . 2 Propulsion 4 | . 1 3 Utility 2 | . 1 1 Weapon 3 | . 2 1 Highest Loss Streak 4 | . 3 4 Average Slot Usage (%) 92 | . 90 96 Engine 6 | . 9 . Core 6 | . 4 10 Leg 7 | . . 22 Wheel 18 | . 24 4 Device 12 | . 11 13 Storage 13 | . 13 14 Energy Gun 6 | . 9 . Energy Cannon 8 | . 12 . Ballistic Cannon 11 | . 3 27 Naked Turns 2 | . 2 . Heaviest Build 29 | 12 29 28 Greatest Support 38 | 26 38 20 Greatest Overweight (x) 2 | . 2 2 Average Overweight (x) . | . . 1 Largest Inventory Capacity 10 | 6 10 10 Average Capacity 9 | 5 9 10 Most Carried 7 | 1 5 7 Average Carried 3 | . 3 5 Final Capacity 10 | 6 10 10 Final Carried 5 | 1 4 5 Class Distribution -------------------- 90% | Mutant 9% | Scavenger-Mutant Dominant Class ---------------- Mutant | -10/Materials Mutant | -10/Mines Resources | -11 -10 -10 ----------- Run | Scr Mat Min Matter Collected 833 | 270 261 302 Remotely . | . . . Salvage Created 1592 | 205 989 398 Parts 115 | 12 78 25 Haulers Intercepted 1 | . 1 . Recyclers Shooed 3 | . 2 1 Parts Field Recycled . | . . . Retrieved Matter . | . . . Parts Self-Destructed . | . . . Prevented . | . . . Kills | -11 -10 -10 ------- Run | Scr Mat Min Combat Hostiles Destroyed 25 | . 13 12 Guns 3 | . 3 . Cannons 22 | . 10 12 Classes Destroyed 10 | 2 7 1 Worker 4 | . 4 . Builder 5 | . 5 . Tunneler 6 | 5 1 . Hauler 1 | . 1 . Recycler 6 | 1 3 2 Operator 1 | . 1 . Watcher 3 | . 3 . Swarmer 9 | . 6 3 Grunt 13 | . 7 6 Assembled 3 | . . 3 Best Kill Streak 8 | 4 8 4 Combat Bots Only 4 | . 4 3 Max Kills in Single Turn 1 | 1 1 1 Gunslinging . | . . . Exploded . | . . . Melee . | . . . Uniques/NPCs Destroyed . | . . . Combat | -11 -10 -10 -------- Run | Scr Mat Min Damage Taken 1237 | . 519 718 Core 263 | . 116 147 Absorbed by Shields . | . . . Core Remaining (%) 100 | 100 . . Volleys Fired 152 | 9 93 50 Largest 2 | 2 2 2 Hottest 136 | 80 136 100 Shots Fired 253 | 18 138 97 Gun 74 | 18 56 . Cannon 178 | . 82 96 Launcher . | . . . Special 1 | . . 1 Kinetic 96 | . . 96 Thermal 126 | . 125 1 Explosive . | . . . Electromagnetic 31 | 18 13 . Robot Hit Streak 8 | 3 8 3 Robot Miss Streak 5 | 2 4 5 Penetration Max . | . . . Secondary Targets . | . . . Shots Hit Robots 121 | 9 74 38 Core Hits 61 | 6 36 19 Critical Hits 2 | . 1 1 Critical Kills . | . . . Critical Parts Destroyed 2 | . 1 1 Melee Attacks . | . . . Impact . | . . . Slashing . | . . . Piercing . | . . . Sneak Attacks . | . . . Combat Hostiles . | . . . Follow-up Attacks . | . . . Damage Inflicted 2139 | 137 1385 617 Guns 558 | 137 421 . Cannons 1564 | . 947 617 Explosions . | . . . Melee . | . . . Ramming 17 | . 17 . Kinetic 617 | . . 617 Thermal 1258 | . 1258 . Explosive . | . . . Electromagnetic 247 | 137 110 . Impact . | . . . Slashing . | . . . Piercing . | . . . Highest Corruption 3 | . 1 3 Average Corruption 1 | . 1 1 Corruption Purged . | . . . Effects 9 | . 3 6 Message Errors 3 | . 1 2 Energy Discharges 1 | . . 1 Targeting Errors 4 | . 1 3 Weapon Failures 1 | . 1 . Overload Shots . | . . . Overflow Damage 30 | . 10 20 Projectiles 30 | . 10 20 Explosions . | . . . Melee . | . . . Knockbacks 5 | . . 5 Impact . | . . . Kinetic 5 | . . 5 Secondary . | . . . Self-Inflicted Damage 8 | . 8 . Shots . | . . . Rammed 6 | . 6 . Targets Rammed 6 | . 6 . Kicked . | . . . Crushed . | . . . Highest Temperature 422 | 106 422 89 Average Temperature 108 | 47 126 30 Received Heat Transfer 405 | . 183 222 Effects 7 | . 7 . Shutdowns 1 | . 1 . Energy Bleed 3 | . 3 . Interference 2 | . 2 . Short Circuit 1 | . 1 . Siege Activations . | . . . Robots Corrupted . | . . . Combat Hostiles . | . . . Parts Fried 1 | 1 . . Impact Corruptions . | . . . Robots Melted . | . . . Combat Hostiles . | . . . Parts Melted 5 | . 5 . Heat Transferred 2627 | . 2627 . Parts Sabotaged . | . . . Parts Stolen . | . . . Parts Stripped . | . . . Power Chain Reactions . | . . . Missiles Intercepted . | . . . Alert | -11 -10 -10 ------- Run | Scr Mat Min Peak Influence 282 | 30 269 282 Initial 72 | . 19 72 Average 137 | 12 131 172 Maximum Alert Level 1 | . 1 1 Low Security (%) 80 | 100 88 59 Level 1 19 | . 11 40 Level 2 . | . . . Level 3 . | . . . Level 4 . | . . . Level 5 . | . . . High Security . | . . . Max Security . | . . . Squads Dispatched 3 | . 3 . Investigation 2 | . 2 . Extermination . | . . . Reinforcement 1 | . 1 . Assault . | . . . Garrison . | . . . Intercept . | . . . Construction Impeded . | . . . Haulers Reinforced . | . . . Stealth | -11 -10 -10 --------- Run | Scr Mat Min Distress Signals . | . . . Communications Jammed . | . . . Distress Signals . | . . . Times Spotted 40 | . 24 16 Peak Tracking Total 4 | . 4 3 Tactical Retreats 4 | . 3 1 Traps | -11 -10 -10 ------- Run | Scr Mat Min Traps Triggered 1 | . 1 . Indirectly . | . . . Trap Hack Attempts . | . . . Triggered . | . . . Disarmed . | . . . Reprogrammed . | . . . Reused . | . . . Traps Extracted . | . . . Installed . | . . . Triggered . | . . . Machines | -11 -10 -10 ---------- Run | Scr Mat Min Machines Disabled 1 | . 1 . Max in Single Turn 1 | . 1 . Machines Sabotaged . | . . . Garrisons Compromised . | . . . Overloaded Fab Kills . | . . . Fab Network Shutdowns . | . . . Hacking | -11 -10 -10 --------- Run | Scr Mat Min Machines Accessed 8 | . 8 . Terminals 6 | . 6 . Fabricators . | . . . Repair Stations 1 | . 1 . Recycling Units 1 | . 1 . Scanalyzers . | . . . Garrison Access . | . . . Total Hacks 17 | . 17 . Successful 10 | . 10 . Failed 7 | . 7 . Catastrophic . | . . . Database Lockouts . | . . . Manual 8 | . 8 . Terminals 15 | . 15 . Fabricators . | . . . Repair Stations 1 | . 1 . Recycling Units 1 | . 1 . Scanalyzers . | . . . Garrison Access . | . . . Terminal Hacks 4 | . 4 . Prototype ID Bank 1 | . 1 . Investigation Status 1 | . 1 . Recall Investigation 1 | . 1 . Registered Components 1 | . 1 . Fabricator Hacks . | . . . Repair Station Hacks 1 | . 1 . Refit 1 | . 1 . Recycling Unit Hacks 1 | . 1 . Retrieve Components 1 | . 1 . Scanalyzer . | . . . Garrison Access Hacks . | . . . Unauthorized Hacks 4 | . 4 . Terminals 4 | . 4 . Assimilate 1 | . 1 . Botnet 3 | . 3 . Fabricators . | . . . Repair Stations . | . . . Recycling Units . | . . . Scanalyzers . | . . . Garrison Access . | . . . Data Cores Recovered . | . . . Used . | . . . Hacking Detections 4 | . 4 . Full Trace Events 2 | . 2 . Feedback Events 1 | . 1 . Corruption 1 | . 1 . Feedback Blocked . | . . . Robot Schematics Acquired . | . . . Robots Built . | . . . Matter . | . . . Time . | . . . Total Robot Build Rating . | . . . Part Schematics Acquired . | . . . Parts Built . | . . . Matter . | . . . Time . | . . . Total Part Build Rating . | . . . Parts Repaired . | . . . Time . | . . . Parts Recycled . | . . . Recycled Matter . | . . . Retrieved Matter . | . . . Retrieved Components 4 | . 4 . Parts Scanalyzed . | . . . Part Schematics Acquired . | . . . Parts Damaged . | . . . Bothacking | -11 -10 -10 ------------ Run | Scr Mat Min Used RIF Installer . | . . . Robots Hacked . | . . . Non-combat . | . . . Combat . | . . . Robot Hacks Applied . | . . . Relay Couplers Released . | . . . Robots Rewired . | . . . Allies Hacked . | . . . Hacks Repelled . | . . . Allies | -11 -10 -10 -------- Run | Scr Mat Min Total Allies . | . . . Largest Group . | . . . Highest-Rated Group . | . . . Highest-Rated Ally . | . . . Total Orders . | . . . Ally Attacks . | . . . Total Damage . | . . . Kills . | . . . Allies Corrupted . | . . . Allies Melted . | . . . Intel | -11 -10 -10 ------- Run | Scr Mat Min Robot Analysis Total . | . . . Derelict Logs Recovered . | . . . Drone Launches . | . . . Drone Recoveries . | . . . Exploration | -11 -10 -10 ------------- Run | Scr Mat Min Turns Passed 1793 | 86 1172 535 Spaces Moved 1187 | 56 907 224 Core 14 | 7 7 . Treads . | . . . Legs 163 | . 3 160 Wheels 1006 | 49 893 64 Hover 4 | . 4 . Flight . | . . . Fastest Speed 50 | 50 50 90 Average Speed 100 | 85 92 133 Slowest Speed 180 | 100 150 180 Overloaded Moves . | . . . Propulsion Burnouts . | . . . Robots Hopped . | . . . Cave-ins Triggered . | . . . Exploration Rate (%) 48 | 3 98 45 Regions Visited 2 Branch Regions 1 Pre-discovered Areas . | . . . Known Exits Taken . | . . . Unknown Exits Taken 2 | 1 1 . Scrap Searched . | . . . Spaces Dug 1 | . . 1 Terrain Destroyed 1 | . . 1 Melee . | . . . Projectile 1 | . . 1 AOE . | . . . Terrain Rammed . | . . . Walls Destroyed . | . . . Machines Disabled . | . . . Actions | -11 -10 -10 --------- Run | Scr Mat Min Total 1535 | 73 1102 360 Wait 101 | . 26 75 Move 1185 | 55 906 224 Hop . | . . . Pick Up 21 | 2 16 3 Fast Attach 17 | 6 10 1 Attach 12 | 1 8 3 Detach . | . . . Swap 13 | . 10 3 Drop 28 | . 27 1 Fire 152 | 9 93 50 Melee . | . . . Ram 6 | . 6 . Kick . | . . . Crush . | . . . Escape Stasis . | . . . Rewire . | . . . Trap . | . . . Miscellaneous . | . . . Route ------- -11/Scrapyard -10/Materials (discovered 4 exits: [*Mat x3] / [*Min]) -10/Mines History --------- Turn | Location | Event 4 | -11/Scrapyard | Discovered new exit (range 15) 87 | -11/Scrapyard | Entered Materials 269 | -10/Materials | Discovered new exit (range 8) 313 | -10/Materials | Build established: Mutant 551 | -10/Materials | Discovered new exit (range 16) 790 | -10/Materials | Lost 3 parts (1n1u1w) 829 | -10/Materials | Discovered new exit (range 4) 1001 | -10/Materials | Discovered new exit (range 9) 1259 | -10/Materials | Entered Mines 1292 | -10/Mines | Core integrity fell below 50% 1492 | -10/Mines | Core integrity fell below 20% 1525 | -10/Mines | Found a damaged Exp. Sensor Array with a note attached 1528 | -10/Mines | Found Prototype Device 1529 | -10/Mines | Identified Exp. Sensor Array 1559 | -10/Mines | Assembled infested the area 1794 | -10/Mines | Destroyed by as-57509 with Assembled Heavy Rifle Last Messages --------------- 01617_ Acquired 74 matter. 01619_ K-01 Serf collects debris. 01626_ as-14200 sneak attacks. 01626_ R-06 Scavenger destroyed. 01627_ K-01 Serf collects debris. 01665_ as-02327 knocked back. 01668_ System corrupted: Lgt. Cannon targeting data glitched. 01672_ Lgt. Nuclear Core destroyed. 01672_ System corrupted by crushing effect (+2). 01674_ as-14200 destroyed. 01677_ as-02327 destroyed. 01689_ RWEG NGR2W/YXL9WF8TI%LE2B 01747_ System corrupted: Mining Laser targeting data glitched. 01767_ Destroyed Asb. F-torch. 01767_ as-17874 destroyed. 01772_ DNR3A=YPCTB#J:E0T<|TS=LIAPA=AHPHXXR#P921 01785_ Aluminum Leg destroyed. 01787_ Ion Engine destroyed. 01789_ Lgt. Cannon destroyed. 01792_ Aluminum Leg destroyed. Map ----- +----------------------------------------------------+ | | | ????????????????????????????????????????????? | | ????????????????????????????????????????????? | | ??????###???????????????????????#######???### | | ?????## ##????????????????????## ##??# | | ?????# ##???????????????????# ##?# " | | ?????# #???????????????????# #?# | | ??????# #????????????????????# #?# | | ?????## #????????????#####????# ### | | ?????# ##???????##### ##??## | | ?????# ##?????## #### ### | | ?????# ##????# = ## ##?### | | ?????## #????# %%= #######????? | | ??????# """ ##???# [= ##??????????? | | ??????## """ #???# #######???????????? | | ???????# """ #???## ##?????????????????? | | ???????## ##????## #??????????????????? | | ????????## ##??????## ##?????????###?????? | | ?????????# ########## ##???????## ##????? | | ???????### ######### ##???? | | ???# " #???? | | ??# ######### = ##% #???? | | ??# ##??????# #######%*###% #???? | | ??# ##???????# ###?????#! #?# #???? | | ??# ##????????## ##???????#% #?# ##??? | | ??# #??????????# @ ##????????# #?# #??? | | ??## ???????????# ##?????????# ### #??? | | ???# ????????????# #??????????# ## ##?? | | ???# ????????????# #?????????##= = ##? | | ???# ?????????????# #????????## = ## | | ???#??????????????# #????????# # | | ??????????????????# #????????# # | | ??????????????# ### #????????## % ## | | ??????????????# !#?????????## ##? | | ??????????????#####a%#??##??????# =% ##?? | | ???????????????#### =### ##?????# ##### | | ?????????????### # #????## % | | ???????????### #?##### | | ??????????## #### ##### | | ?????????# ##?# %= ? ##??? | | ?????????## #### #?## ##?? | | ??????????## #???# #?# ?=* #?? | | ???????????## ????# #?# *%[ #?? | | ????????????# ????# #?# =* #?? | | ????????????## ?????# #### ## ##?? | | ?????????????# ?????# ########??? | | ?????????????# ?????# #?????????? | | ?????????????# ??????######## ? #?????????? | | ?????????????#??????????????## ##?????????? | | ?????????????????????????????# #??????????? | +----------------------------------------------------+ Best States ------------- Heat Dissipation 39 Energy Generation 14 Energy Capacity 250 Matter Stores 300 Matter Capacity 300 Sight Range 16 Robot Scan Range 30 Terrain Scan Range 16 Terrain Scan Density 10 Additional Mass Support 6 Evasion (%) 49 Item Schematics ----------------- None Robot Schematics ------------------ None Fabricated ------------ Nothing Alien Tech Used ----------------- None Achievements -------------- None Challenges ------------ None Game ------ Seed CentriumGravmagMallet Manual? 0 Play Time 00:23:13 Cumulative 15.7 hours Start 2020.10.27 @ 21:27:07 End 2020.10.27 @ 21:49:06 Sessions 1 Manual Loads 0 Difficulty Rogue Special Mode None Game No. 24 Rogue 24 Adventurer 0 Explorer 0 Win Type - Total 0 Types 0/0/0/0/0/0/0/0/0 Lore% 19 Gallery% 20 Achievement% 18 Wizard Run 0 Options --------- ASCII 0 Keyboard 0 Movement Mouse Keybinds 0 Fullscreen 2 Font 24/Smallcaps Map View 76x50 Tactical HUD 1 Map Filters NONE Filters NONE Steam X RUN: c3d11f52-027c-4e79-b411-d81929ad1222